Cogmind - Beta 10.2 *** ADVENTURER MODE // 2021.06.04 @ 22:55:29 Player: darlorth Result: Destroyed by D-53 Grenadier with Mini Grenade Launcher Performance ------------- Evolutions (1) 500 Regions Visited (3) 600 Robots Destroyed (8) 40 Value Destroyed (172) 172 Prototype IDs (0) 0 Alien Tech Used (0) 0 Bonus (0) 0 TOTAL SCORE: 1312 Bonus ------- None Cogmind --------- Core Integrity 0/400 Matter 279/300 Energy 250/250 System Corruption 0% Temperature Cool (0) Movement Core (150) Ox2 Location -9/Mines Parts ------- > --- POWER (1) -------- Ion Engine > --- PROPULSION (3) --- (None) > --- UTILITY (2) ------ (None) > --- WEAPON (3) ------- Flail > --- INVENTORY (4) ---- Long-range Sensor Array Improved Signal Interpreter Remote Datajack Peak State ------------ > --- POWER ------------ Ion Engine > --- PROPULSION ------- Light Treads Light Treads Improved Treads > --- UTILITY ---------- Large Storage Unit Improved Sensor Array > --- WEAPON ----------- Small Laser Assault Rifle Light Assault Rifle > --- INVENTORY -------- Ion Engine Small Storage Unit Long-range Sensor Array Improved Signal Interpreter Improved Targeting Computer Spread Laser Light Assault Rifle Gauss Cannon Grenade Launcher Spear [Rating: 13] Favorites ----------- Power Ion Engine Engine Ion Engine Propulsion Light Treads Treads Light Treads Leg Aluminum Leg Utility Improved Sensor Array Device Improved Sensor Array Storage Large Storage Unit Processor Improved Targeting Computer Weapon Assault Rifle Energy Gun Small Laser Ballistic Gun Assault Rifle Launcher Grenade Launcher Impact Weapon Flail Build | -11 -10 -9 -9 ------- Run | Scr Mat Mat Min Slots Evolved 2 | . . 2 . Power . | . . . . Propulsion 1 | . . 1 . Utility . | . . . . Weapon 1 | . . 1 . Parts Attached 20 | 5 5 2 8 Power 2 | 1 . . 1 Engine 2 | 1 . . 1 Core . | . . . . Reactor . | . . . . Propulsion 5 | 2 2 1 . Treads 3 | . 2 1 . Leg 2 | 2 . . . Wheel . | . . . . Hover . | . . . . Flight . | . . . . Utility 4 | . 2 . 2 Device 2 | . 1 . 1 Storage 1 | . 1 . . Processor 1 | . . . 1 Hackware . | . . . . Protection . | . . . . Artifact . | . . . . Weapon 9 | 2 1 1 5 Energy Gun 1 | . . 1 . Energy Cannon . | . . . . Ballistic Gun 5 | 2 1 . 2 Ballistic Cannon . | . . . . Launcher 2 | . . . 2 Special Weapon . | . . . . Impact Weapon 1 | . . . 1 Slashing Weapon . | . . . . Piercing Weapon . | . . . . Special Melee Weapon . | . . . . Unidentified Prototypes . | . . . . Parts Lost 12 | . . . 12 Power 1 | . . . 1 Propulsion 3 | . . . 3 Utility 3 | . . . 3 Weapon 5 | . . . 5 Highest Loss Streak 10 | . . . 10 Average Slot Usage (%) 90 | . 92 97 86 Engine 12 | . 14 11 10 Treads 26 | . 23 31 27 Leg 2 | . 4 . . Device 11 | . 13 11 9 Storage 8 | . 7 11 9 Energy Gun 5 | . . 11 8 Ballistic Gun 20 | . 28 22 11 Launcher 2 | . . . 7 Naked Turns 16 | . . . 16 Heaviest Build 28 | 8 25 26 28 Greatest Support 63 | 20 40 63 63 Greatest Overweight (x) 2 | . . . 2 Average Overweight (x) . | . . . . Largest Inventory Capacity 10 | 4 10 10 10 Average Capacity 8 | 4 7 10 9 Most Carried 10 | 3 5 9 10 Average Carried 6 | 1 3 6 8 Final Capacity 10 | 4 10 10 4 Final Carried 9 | 2 5 9 3 Class Distribution -------------------- 81% | Mutant 18% | Skirmisher Dominant Class ---------------- Mutant | -10/Materials Skirmisher | -9/Materials Mutant | -9/Mines Resources | -11 -10 -9 -9 ----------- Run | Scr Mat Mat Min Matter Collected 411 | 219 129 . 63 Remotely 9 | . . . 9 Salvage Created 294 | . 294 . . Parts 14 | . 14 . . Haulers Intercepted . | . . . . Recyclers Shooed . | . . . . Parts Field Recycled . | . . . . Retrieved Matter . | . . . . Parts Self-Destructed . | . . . . Prevented . | . . . . Kills | -11 -10 -9 -9 ------- Run | Scr Mat Mat Min Combat Hostiles Destroyed 7 | . 7 . . Guns 7 | . 7 . . Classes Destroyed 3 | . 3 . . Recycler 1 | . 1 . . Swarmer 3 | . 3 . . Grunt 4 | . 4 . . Best Kill Streak 5 | . 5 . . Combat Bots Only 4 | . 4 . . Max Kills in Single Turn 1 | . 1 . . Gunslinging . | . . . . Exploded . | . . . . Melee . | . . . . Uniques/NPCs Destroyed . | . . . . Combat | -11 -10 -9 -9 -------- Run | Scr Mat Mat Min Damage Taken 1471 | . 192 . 1279 Core 441 | . 39 . 402 Absorbed by Shields . | . . . . Core Remaining (%) 92 | 100 84 . . Volleys Fired 24 | . 17 . 7 Largest 3 | . 2 . 3 Hottest 80 | . 40 . 80 Shots Fired 47 | . 34 . 13 Gun 45 | . 34 . 11 Cannon . | . . . . Launcher 2 | . . . 2 Special . | . . . . Kinetic 43 | . 34 . 9 Thermal 2 | . . . 2 Explosive 2 | . . . 2 Electromagnetic . | . . . . Robot Hit Streak 17 | . 8 . 17 Robot Miss Streak 1 | . 1 . . Penetration Max . | . . . . Secondary Targets 2 | . 2 . . Max Gunslinging Chain 1 | . 1 . . Shots Hit Robots 44 | . 29 . 15 Core Hits 15 | . 14 . 1 Critical Hits 1 | . 1 . . Critical Kills . | . . . . Critical Parts Destroyed 1 | . 1 . . Melee Attacks 4 | . . . 4 Impact 4 | . . . 4 Slashing . | . . . . Piercing . | . . . . Sneak Attacks . | . . . . Combat Hostiles . | . . . . Follow-up Attacks . | . . . . Damage Inflicted 476 | . 274 . 202 Guns 369 | . 272 . 97 Cannons . | . . . . Explosions 28 | . . . 28 Melee 77 | . . . 77 Ramming 2 | . 2 . . Kinetic 347 | . 272 . 75 Thermal 22 | . . . 22 Explosive 28 | . . . 28 Electromagnetic . | . . . . Impact 77 | . . . 77 Slashing . | . . . . Piercing . | . . . . Highest Corruption . | . . . . Average Corruption . | . . . . Corruption Purged . | . . . . Overload Shots . | . . . . Overflow Damage 20 | . . . 20 Projectiles . | . . . . Explosions . | . . . . Melee 20 | . . . 20 Knockbacks 1 | . . . 1 Impact 1 | . . . 1 Kinetic . | . . . . Secondary . | . . . . Self-Inflicted Damage . | . . . . Shots . | . . . . Rammed 2 | . 2 . . Targets Rammed 2 | . 2 . . Kicked . | . . . . Crushed . | . . . . Highest Temperature 23 | . 6 . 23 Average Temperature 8 | . 6 . 11 Received Heat Transfer 60 | . 60 . . Siege Activations . | . . . . Robots Corrupted . | . . . . Combat Hostiles . | . . . . Parts Fried . | . . . . Impact Corruptions 1 | . . . 1 Robots Melted . | . . . . Combat Hostiles . | . . . . Parts Melted . | . . . . Heat Transferred 50 | . . . 50 Parts Sabotaged . | . . . . Parts Stolen . | . . . . Parts Stripped . | . . . . Power Chain Reactions . | . . . . Missiles Intercepted . | . . . . Alert | -11 -10 -9 -9 ------- Run | Scr Mat Mat Min Peak Influence 180 | . 180 . 15 Initial . | . . . . Average 39 | . 91 . . Maximum Alert Level . | . . . . Low Security (%) 100 | 100 100 100 100 Level 1 . | . . . . Level 2 . | . . . . Level 3 . | . . . . Level 4 . | . . . . Level 5 . | . . . . High Security . | . . . . Max Security . | . . . . Squads Dispatched 2 | . 1 . 1 Investigation 2 | . 1 . 1 Extermination . | . . . . Reinforcement . | . . . . Assault . | . . . . Garrison . | . . . . Intercept . | . . . . Construction Impeded . | . . . . Haulers Reinforced . | . . . . Stealth | -11 -10 -9 -9 --------- Run | Scr Mat Mat Min Distress Signals . | . . . . Communications Jammed . | . . . . Distress Signals . | . . . . Times Spotted 11 | . 8 . 3 Peak Tracking Total 4 | . 4 . 2 Tactical Retreats 2 | . 1 . 1 Traps | -11 -10 -9 -9 ------- Run | Scr Mat Mat Min Traps Triggered 2 | . 2 . . Indirectly . | . . . . Trap Hack Attempts . | . . . . Triggered . | . . . . Disarmed . | . . . . Reprogrammed . | . . . . Reused . | . . . . Traps Extracted . | . . . . Installed . | . . . . Triggered . | . . . . Machines | -11 -10 -9 -9 ---------- Run | Scr Mat Mat Min Machines Disabled . | . . . . Max in Single Turn . | . . . . Machines Sabotaged . | . . . . Garrisons Compromised . | . . . . Overloaded Fab Kills . | . . . . Fab Network Shutdowns . | . . . . Hacking | -11 -10 -9 -9 --------- Run | Scr Mat Mat Min Machines Accessed 1 | . . . 1 Terminals . | . . . . Fabricators . | . . . . Repair Stations . | . . . . Recycling Units . | . . . . Scanalyzers . | . . . . Garrison Access . | . . . . Total Hacks 1 | . . . 1 Successful 1 | . . . 1 Failed . | . . . . Catastrophic . | . . . . Database Lockouts . | . . . . Manual . | . . . . Terminals . | . . . . Fabricators . | . . . . Repair Stations . | . . . . Recycling Units . | . . . . Scanalyzers . | . . . . Garrison Access . | . . . . Terminal Hacks 1 | . . . 1 Open Door 1 | . . . 1 Fabricator Hacks . | . . . . Repair Station Hacks . | . . . . Recycling Unit Hacks . | . . . . Scanalyzer . | . . . . Garrison Access Hacks . | . . . . Unauthorized Hacks . | . . . . Terminals . | . . . . Fabricators . | . . . . Repair Stations . | . . . . Recycling Units . | . . . . Scanalyzers . | . . . . Garrison Access . | . . . . Data Cores Recovered . | . . . . Used . | . . . . Hacking Detections . | . . . . Full Trace Events . | . . . . Feedback Events . | . . . . Feedback Blocked . | . . . . Robot Schematics Acquired . | . . . . Robots Built . | . . . . Matter . | . . . . Time . | . . . . Total Robot Build Rating . | . . . . Part Schematics Acquired . | . . . . Parts Built . | . . . . Matter . | . . . . Time . | . . . . Total Part Build Rating . | . . . . Parts Repaired . | . . . . Time . | . . . . Parts Recycled . | . . . . Recycled Matter . | . . . . Retrieved Matter . | . . . . Retrieved Components . | . . . . Parts Scanalyzed . | . . . . Part Schematics Acquired . | . . . . Parts Damaged . | . . . . Bothacking | -11 -10 -9 -9 ------------ Run | Scr Mat Mat Min Used RIF Installer . | . . . . Robots Hacked . | . . . . Non-combat . | . . . . Combat . | . . . . Robot Hacks Applied . | . . . . Relay Couplers Released . | . . . . Robots Rewired . | . . . . Allies Hacked . | . . . . Hacks Repelled . | . . . . Allies | -11 -10 -9 -9 -------- Run | Scr Mat Mat Min Total Allies 1 | . . . 1 Largest Group 1 | . . . 1 Highest-Rated Group 31 | . . . 31 Highest-Rated Ally 31 | . . . 31 Total Orders . | . . . . Ally Attacks 1 | . . . 1 Total Damage . | . . . . Kills . | . . . . Allies Corrupted . | . . . . Allies Melted . | . . . . Intel | -11 -10 -9 -9 ------- Run | Scr Mat Mat Min Robot Analysis Total . | . . . . Derelict Logs Recovered . | . . . . Drone Launches . | . . . . Drone Recoveries . | . . . . Exploration | -11 -10 -9 -9 ------------- Run | Scr Mat Mat Min Turns Passed 1133 | 69 488 165 411 Spaces Moved 680 | 52 275 99 254 Core 54 | 7 . . 47 Treads 513 | . 207 99 207 Legs 113 | 45 68 . . Wheels . | . . . . Hover . | . . . . Flight . | . . . . Fastest Speed 50 | 50 120 160 50 Average Speed 146 | 110 150 160 143 Slowest Speed 160 | 120 160 160 160 Overloaded Moves . | . . . . Propulsion Burnouts . | . . . . Robots Hopped . | . . . . Cave-ins Triggered . | . . . . Exploration Rate (%) 26 | 4 36 15 52 Regions Visited 3 Branch Regions 1 Pre-discovered Areas . | . . . . Known Exits Taken . | . . . . Unknown Exits Taken 3 | 1 1 1 . Scrap Searched 1 | . . . 1 Spaces Dug . | . . . . Terrain Destroyed 15 | . . . 15 Melee . | . . . . Projectile . | . . . . AOE 15 | . . . 15 Terrain Rammed . | . . . . Walls Destroyed . | . . . . Machines Disabled . | . . . . Actions | -11 -10 -9 -9 --------- Run | Scr Mat Mat Min Total 768 | 63 318 106 281 Wait 14 | . 14 . . Move 677 | 51 274 98 254 Hop . | . . . . Pick Up 22 | 7 4 6 5 Fast Attach 4 | . 2 . 2 Attach 11 | 5 1 2 3 Detach . | . . . . Swap 5 | . 2 . 3 Drop 5 | . 2 . 3 Fire 24 | . 17 . 7 Melee 4 | . . . 4 Ram . | . . . . Kick . | . . . . Crush 2 | . 2 . . Escape Stasis . | . . . . Rewire . | . . . . Trap . | . . . . Miscellaneous . | . . . . Route ------- -11/Scrapyard -10/Materials -9/Materials -9/Mines (discovered 1 exit: [*Mat]) History --------- Turn | Location | Event 3 | -11/Scrapyard | Discovered new exit (range 16) 70 | -11/Scrapyard | Entered Materials 321 | -10/Materials | Build established: Mutant 550 | -10/Materials | Discovered new exit (range 4) 558 | -10/Materials | Entered another Materials area 558 | -9/Materials | Evolved 2 slots: Propulsion x1, Weapon x1 693 | -9/Materials | Discovered new exit (range 12) 723 | -9/Materials | Entered Mines 728 | -9/Mines | Met a Derelict bent on vengeance 745 | -9/Mines | Met a Derelict shopkeep closing up shop 809 | -9/Mines | Received a Mining Laser from a helpful Derelict 1019 | -9/Mines | Assembled infested the area 1024 | -9/Mines | Assisted by a Guerilla fighting off Assembled 1090 | -9/Mines | Core integrity fell below 50% 1120 | -9/Mines | Lost 10 parts (1p3n2u4w) 1129 | -9/Mines | Discovered new exit (range 10) 1131 | -9/Mines | Core integrity fell below 20% 1134 | -9/Mines | Destroyed by D-53 Grenadier with Mini Grenade Launcher Last Messages --------------- 01104_ Found Tractor Beam. 01104_ Found Flail. 01104_ Found Lgt. Assault Rifle. 01104_ Found 31 Matter. 01105_ Acquired 22 matter. 01105_ Acquired Tractor Beam. 01106_ Acquired 9 matter. 01107_ Acquired Mni. Grenade Launcher. 01114_ Acquired Flail. 01124_ K-01 Serf collects debris. 01125_ Destroyed Shock Absorption System. 01125_ D-53 Grenadier system corrupted by crushing effect. 01125_ D-53 Grenadier knocked back. 01126_ Tractor Beam destroyed. 01128_ K-01 Serf collects debris. 01129_ The unstable cave ceiling collapses. 01129_ Mni. Grenade Launcher destroyed. 01129_ EXIT=FOUND 01131_ The unstable cave ceiling collapses. 01132_ K-01 Serf collects debris. Map ----- +----------------------------------------------------+ | | | | | | | | | | | | | | | | | | | | | | | | | | | | | ??????????????????????????????????????? | | ??????????????????????????????????????? | | ??????????????????????????????????????? | | ????????????????????#####?????????????? | | ????????????????????# ##????????????? | | ???????????????????## #????????????? | | ??????????????###### ###??????????? | | ?????????????## ###????????? | | ??############ # #####????? | | ??# d #????? | | ??# #????? | | ????######### d @ < #????? | | ???????????# #????? | | ???????????# # k #????? | | ???????????# # [ ## ####????? | | ???????????## #!###### # ##?# #???????? | | ?????????#### % #???????? | | ?????????# # #### #####?????#???????? | | ?????????# # # #???????????????????? | | ?????????# ###????????????????????? | | ?????????# #????????????????????? | | ?????????# ## #?????????????????? | | ?????##### #?????????????????? | | ????## ####?????????????????? | | ???## ##????????????????????? | | ?### #?????????????????????? | | ?# # #?????????????????????? | | ## ## #?????????????????????? | | #? #????????????????????? | | ##?####????????????????????? | | ## #?????????????????????????? | | # ##?????????????????????????? | | ##??????????????????????????? | | ##???????????????????????????? | | ##????????????????????????????? | | # ##?????????????????????????????? | +----------------------------------------------------+ Best States ------------- Heat Dissipation 28 Energy Generation 10 Energy Capacity 250 Matter Stores 300 Matter Capacity 300 Sight Range 16 Robot Scan Range 13 Terrain Scan Density 10 Resistance: KI 20 Resistance: TH 20 Resistance: EX 20 Resistance: EM 20 Resistance: I 20 Resistance: S 20 Resistance: P 20 Evasion (%) 50 Targeting Accuracy 6 Recoil Reduction 3 Offensive Hacking 10 Item Schematics ----------------- None Robot Schematics ------------------ None Fabricated ------------ Nothing Alien Tech Used ----------------- None Achievements -------------- None Challenges ------------ None Game ------ Seed ReactionProcessingPrototype Manual? 0 Play Time 00:10:19 Cumulative 161.9 hours Start 2021.06.04 @ 22:15:52 End 2021.06.04 @ 22:55:29 Sessions 1 Manual Loads 0 Difficulty Adventurer Special Mode None Game No. 188 Rogue 106 Adventurer 36 Explorer 46 Win Type - Total 6 Types 5/0/1/0/0/0/0/0/0 Lore% 31 Gallery% 65 Achievement% 52 Wizard Run 0 Options --------- ASCII 0 Keyboard 0 Movement Mouse Keybinds 0 Fullscreen 1 Font 12/Smallcaps Map View 83x54 Tactical HUD 1 Map Filters NONE Filters NONE Steam 1 RUN: 2428a5ad-599a-43bf-8762-b6058431702d